[Event "45th Guernsey Open 2019"]
[Site "Vale"]
[Date "2019.10.24"]
[Round "5.9"]
[White "Reijneveld, Ad"]
[Black "Prins, Jan"]
[Result "1/2-1/2"]
[ECO "B10"]
[WhiteElo "2056"]
[BlackElo "1987"]
[Annotator "NA RC"]
[PlyCount "108"]
[EventDate "2019.10.20"]
[EventType "swiss"]
[EventCountry "GCI"]
[SourceTitle "playchess.com"]
[Source "ChessBase"]
[SourceQuality "1"]
[TimeControl "40/6000+30:2400+30"]

1. e4 {[%emt 0:00:00]} c6 {[%emt 0:00:00]} 2. Nc3 {[%emt 0:00:03]} d5 {[%emt 0:00:00]} 3. Nf3 {[%emt 0:00:09]} d4 {[%emt 0:00:00]} 4. Nb1 {[%emt 0:01:24]} Bg4 {[%emt 0:06:34]} 5. Bc4 {[%emt 0:01:31]} e6 {[%emt 0:01:17]} 6. h3 {[%emt 0:04:08]} Bh5 {[%emt 0:06:09]} 7. d3 {[%emt 0:00:24]} Bg6 {[%emt 0:14:43]} 8. c3 {[%emt 0:04:59]} dxc3 {[%emt 0:08:23]} 9. bxc3 {[%emt 0:03:15]} Nd7 {[%emt 0:01:22]} 10. O-O {[%emt 0:01:48]} Be7 {[%emt 0:10:36]} 11. Bb3 {[%emt 0:17:15]} Nc5 {[%emt 0:06:10]} 12. Bc2 {[%emt 0:04:56]} Qc7 {[%emt 0:09:35]} 13. Qe2 {[%emt 0:03:57]} b5 {[%emt 0:03:18]} 14. d4 {[%emt 0:03:03]} Nd7 {[%emt 0:00:57]} 15. a4 {[%emt 0:02:49]} Rb8 {[%emt 0:01:14]} 16. g3 {[%emt 0:15:04]} Rb7 {[%emt 0:03:42]} 17. Kg2 {[%emt 0:07:18]} b4 {[%emt 0:03:14]} 18. cxb4 {[%emt 0:01:26]} Bxb4 {[%emt 0:00:15]} 19. Na3 {[%emt 0:02:38]} Ngf6 {[%emt 0:05:36]} 20. Nc4 {[%emt 0:05:19]} O-O {[%emt 0:03:08]} 21. Bf4 {[%emt 0:01:34]} Qd8 {[%emt 0:01:41]} 22. Rab1 {[%emt 0:01:17]} a5 {[%emt 0:00:14]} 23. Rfd1 {[%emt 0:07:48]} Qa8 {[%emt 0:01:16]} 24. Nfe5 {[%emt 0:01:32]} Nxe5 {[%emt 0:02:13]} 25. dxe5 {[%emt 0:01:33]} Ne8 {[%emt 0:00:31]} 26. Be3 {[%emt 0:02:13]} c5 {[%emt 0:00:59]} 27. f4 {[%emt 0:01:37]} Rc7 {[%emt 0:02:11]} 28. Qf3 {[%emt 0:00:57]} f5 {[%emt 0:00:55]} 29. exf5 {[%emt 0:01:49]} Qxf3+ {[%emt 0:00:15]} 30. Kxf3 {[%emt 0:00:05]} Bxf5 {[%emt 0:00:38]} 31. Bxf5 {[%emt 0:00:07]} Rxf5 {[%emt 0:00:32]} 32. Rd8 {[%emt 0:01:05]} Rf8 {[%emt 0:00:23]} 33. Rbd1 {[%emt 0:00:50]} g6 {[%emt 0:00:45]} 34. Ra8 {[%emt 0:01:08]} Rcf7 {[%emt 0:04:53]} 35. Rdd8 {[%emt 0:01:55]} Ng7 {[%emt 0:00:18]} 36. Ke4 {[%emt 0:01:07]} Rxd8 {[%emt 0:01:03]} 37. Rxd8+ {[%emt 0:00:06]} Rf8 {[%emt 0:00:10]} 38. Rxf8+ {[%emt 0:00:26]} Kxf8 {[%emt 0:00:05]} 39. g4 {[%emt 0:00:56]} Ke7 {[%emt 0:00:58]} 40. Kd3 {[%emt 0:01:41]} Kd7 {[%emt 0:00:17]} 41. Nd6 {[%emt 0:40:55]} Kc6 {[%emt 0:40:22]} 42. Kc4 {[%emt 0:00:13]} h5 {[%emt 0:01:17]} 43. Ne4 {[%emt 0:02:09]} hxg4 {[%emt 0:01:49]} 44. hxg4 {[%emt 0:00:06]} Ba3 {[%emt 0:00:21]} 45. Nxc5 {[%emt 0:01:21]} Bxc5 {[%emt 0:00:08]} 46. Bxc5 {[%emt 0:00:07]} Ne8 {[%emt 0:00:06]} 47. Be3 {[%emt 0:02:40]} Nc7 {[%emt 0:00:42]} 48. Bd2 {[%emt 0:00:32]} Kb6 $2 {[%emt 0:00:04]} (48... Nd5 $16 {was necessary.} 49. Bxa5 Ne3+ 50. Kd3 Nxg4) 49. Kd4 {[%emt 0:01:01]} Na6 {[%emt 0:04:49]} 50. Be3 {[%emt 0:01:25]} Kc6 {[%emt 0:00:14]} 51. Kc4 $2 {[%emt 0:00:40]} ({White should try} 51. Ke4 $18) 51... Nc7 {[%emt 0:00:14]} 52. Bd2 {[%emt 0:00:29]} Kb6 {[%emt 0:00:05]} 53. Bc3 $2 {[%emt 0:01:03]} (53. g5 $18) 53... Nd5 {[%emt 0:03:57] [#]} 54. Bd4+ $11 (54. Bd2 $2 {[%emt 0:01:57]}) (54. Kd4 $1 $18 Nxf4 55. Ke4) 54... Kc6 1/2-1/2

[Event "45th Guernsey Open 2019"]
[Site "Vale"]
[Date "2019.10.24"]
[Round "5.10"]
[White "Hoogakker, Peter"]
[Black "Dennis, Nigel W"]
[Result "1/2-1/2"]
[ECO "B40"]
[WhiteElo "1749"]
[BlackElo "1768"]
[Annotator "NA"]
[PlyCount "31"]
[EventDate "2019.10.20"]
[EventType "swiss"]
[EventCountry "GCI"]
[SourceTitle "playchess.com"]
[Source "ChessBase"]
[SourceQuality "1"]
[TimeControl "40/6000+30:2400+30"]

1. e4 {[%emt 0:00:00]} c5 {[%emt 0:00:00]} 2. Nf3 {[%emt 0:00:00]} e6 {[%emt 0:00:00]} 3. c3 {[%emt 0:00:00]} d5 {[%emt 0:00:31]} 4. exd5 {[%emt 0:00:00]} Qxd5 {[%emt 0:00:10]} 5. d4 {[%emt 0:00:10]} Nf6 {[%emt 0:00:39]} 6. Be2 {[%emt 0:02:20]} Nc6 {[%emt 0:00:26]} 7. O-O {[%emt 0:00:36]} Be7 {[%emt 0:04:14]} 8. Na3 {[%emt 0:05:18]} cxd4 {[%emt 0:03:42]} 9. Nb5 {[%emt 0:01:31]} Qd8 {[%emt 0:00:24]} 10. Nbxd4 {[%emt 0:02:54]} Nxd4 {[%emt 0:01:06]} 11. Nxd4 {[%emt 0:00:16]} O-O {[%emt 0:00:41]} 12. Bf4 {[%emt 0:04:31]} a6 {[%emt 0:03:43]} 13. Qb3 {[%emt 0:06:39]} Qa5 {[%emt 0:12:25]} 14. Nf3 {[%emt 0:05:54]} Nd5 {[%emt 0:10:51]} 15. Bg3 {[%emt 0:05:51]} Qb6 {[%emt 0:00:36]} 16. Qxb6 {[%emt 0:06:16]} 1/2-1/2

[Event "45th Guernsey Open 2019"]
[Site "Vale"]
[Date "2019.10.24"]
[Round "5.11"]
[White "Remie, Peter"]
[Black "Strade, Arita"]
[Result "0-1"]
[ECO "E12"]
[WhiteElo "1688"]
[BlackElo "1882"]
[Annotator "NA RC"]
[PlyCount "64"]
[EventDate "2019.10.20"]
[EventType "swiss"]
[EventCountry "GCI"]
[SourceTitle "playchess.com"]
[Source "ChessBase"]
[SourceQuality "1"]
[TimeControl "40/6000+30:2400+30"]

1. d4 {[%emt 0:00:00]} Nf6 {[%emt 0:00:21]} 2. c4 {[%emt 0:00:04]} e6 {[%emt 0:01:10]} 3. Nf3 {[%emt 0:00:14]} b6 {[%emt 0:01:51]} 4. Bg5 {[%emt 0:03:34]} Be7 {[%emt 0:01:36]} 5. e3 {[%emt 0:00:43]} Ne4 {[%emt 0:07:08]} 6. Bxe7 {[%emt 0:01:28]} Qxe7 {[%emt 0:00:08]} 7. a3 {[%emt 0:00:53]} O-O {[%emt 0:03:41]} 8. Be2 {[%emt 0:09:24]} f5 {[%emt 0:03:47]} 9. Nc3 {[%emt 0:04:51]} d6 {[%emt 0:07:40]} 10. Qc2 {[%emt 0:03:45]} Bb7 {[%emt 0:01:12]} 11. h4 {[%emt 0:01:04]} Nd7 {[%emt 0:01:07]} 12. Nxe4 {[%emt 0:09:52]} fxe4 {[%emt 0:05:33]} 13. Ng5 {[%emt 0:22:03]} Nf6 {[%emt 0:01:29]} 14. f3 {[%emt 0:05:10]} d5 {[%emt 0:05:03]} 15. fxe4 {[%emt 0:00:23]} dxe4 {[%emt 0:06:01]} 16. O-O-O {[%emt 0:06:14]} h6 {[%emt 0:01:40]} 17. Nh3 {[%emt 0:00:14]} c5 {[%emt 0:00:46]} 18. Nf4 {[%emt 0:00:48]} cxd4 {[%emt 0:05:40]} 19. Rxd4 {[%emt 0:05:06]} e5 {[%emt 0:02:26]} 20. Ng6 {[%emt 0:08:58]} Qe8 {[%emt 0:01:10]} 21. Nxf8 {[%emt 0:16:46]} exd4 {[%emt 0:00:22]} 22. exd4 {[%emt 0:00:52]} Qxf8 {[%emt 0:00:32]} 23. Rf1 {[%emt 0:01:00]} Qd6 {[%emt 0:02:08]} 24. Qc3 {[%emt 0:02:22]} Rd8 {[%emt 0:05:31]} 25. g4 {[%emt 0:00:39]} Qh2 {[%emt 0:07:31]} 26. Qe3 {[%emt 0:01:06]} Qxh4 {[%emt 0:01:16]} 27. d5 {[%emt 0:01:42]} Qh2 {[%emt 0:01:41]} 28. Rf2 {[%emt 0:01:10]} Qc7 {[%emt 0:01:50]} 29. g5 {[%emt 0:00:31]} hxg5 {[%emt 0:04:08]} 30. Qxg5 {[%emt 0:00:19]} Rxd5 {[%emt 0:02:46]} 31. Qg6 {[%emt 0:01:08]} Rd6 {[%emt 0:01:55]} 32. Kb1 {[%emt 0:02:10]} e3 {[%emt 0:04:12]} 0-1

[Event "45th Guernsey Open 2019"]
[Site "Vale"]
[Date "2019.10.25"]
[Round "6.4"]
[White "Purdon, Colin"]
[Black "Havenaar, Jan"]
[Result "1/2-1/2"]
[ECO "A40"]
[WhiteElo "1993"]
[BlackElo "2091"]
[Annotator "NA"]
[PlyCount "48"]
[EventDate "2019.10.20"]
[EventType "swiss"]
[EventCountry "GCI"]
[SourceTitle "playchess.com"]
[Source "ChessBase"]
[SourceQuality "1"]
[TimeControl "40/6000+30:2400+30"]

1. d4 {[%emt 0:00:00]} g6 {[%emt 0:00:00]} 2. c4 {[%emt 0:00:00]} Bg7 {[%emt 0:00:10]} 3. Nc3 {[%emt 0:01:08]} c5 {[%emt 0:00:54]} 4. d5 {[%emt 0:00:36]} d6 {[%emt 0:01:26]} 5. e4 {[%emt 0:00:55]} Nf6 {[%emt 0:06:56]} 6. Bd3 {[%emt 0:03:41]} O-O {[%emt 0:02:42]} 7. h3 {[%emt 0:02:17]} e6 {[%emt 0:00:33]} 8. Nf3 {[%emt 0:02:17]} exd5 {[%emt 0:17:46]} 9. exd5 {[%emt 0:01:18]} Re8+ {[%emt 0:01:46]} 10. Be3 {[%emt 0:01:28]} Nbd7 {[%emt 0:00:11]} 11. O-O {[%emt 0:01:06]} Ne5 {[%emt 0:00:06]} 12. Nxe5 {[%emt 0:03:33]} Rxe5 {[%emt 0:00:09]} 13. Bf4 {[%emt 0:03:08]} Re8 {[%emt 0:10:40]} 14. Qd2 {[%emt 0:03:33]} Nh5 {[%emt 0:01:37]} 15. Bh2 {[%emt 0:01:52]} Be5 {[%emt 0:02:02]} 16. Bxe5 {[%emt 0:03:10]} dxe5 {[%emt 0:05:40]} 17. Qh6 {[%emt 0:13:19]} f5 {[%emt 0:05:35]} 18. Rfe1 {[%emt 0:10:27]} a6 {[%emt 0:12:22]} 19. Rad1 {[%emt 0:04:38]} Qd6 {[%emt 0:00:52]} 20. Bxf5 {[%emt 0:21:32]} Bxf5 {[%emt 0:00:20]} 21. g4 {[%emt 0:00:08]} Ng7 {[%emt 0:04:32]} 22. gxf5 {[%emt 0:00:12]} Nxf5 {[%emt 0:00:05]} 23. Ne4 {[%emt 0:04:34]} Qd8 {[%emt 0:01:25]} 24. Qg5 {[%emt 0:00:50]} Qxg5+ 1/2-1/2

[Event "45th Guernsey Open 2019"]
[Site "Vale"]
[Date "2019.10.25"]
[Round "6.6"]
[White "Van den Boogaart, Jan Maarten"]
[Black "Kwossek, Georg"]
[Result "0-1"]
[ECO "C41"]
[WhiteElo "2039"]
[BlackElo "1984"]
[Annotator "NA RC"]
[PlyCount "70"]
[EventDate "2019.10.20"]
[EventType "swiss"]
[EventCountry "GCI"]
[SourceTitle "playchess.com"]
[Source "ChessBase"]
[SourceQuality "1"]
[TimeControl "40/6000+30:2400+30"]

1. e4 {[%emt 0:00:00]} d6 {[%emt 0:00:00]} 2. d4 {[%emt 0:00:00]} Nf6 {[%emt 0:00:00]} 3. Nc3 {[%emt 0:00:00]} e5 {[%emt 0:00:00]} 4. Nf3 {[%emt 0:00:14]} Nbd7 {[%emt 0:00:00]} 5. Bc4 {[%emt 0:00:22]} Be7 {[%emt 0:00:00]} 6. O-O {[%emt 0:00:32]} O-O {[%emt 0:00:02]} 7. Re1 {[%emt 0:00:42]} c6 {[%emt 0:00:04]} 8. a4 {[%emt 0:00:55]} a5 {[%emt 0:00:04]} 9. Ba2 {[%emt 0:00:54]} exd4 {[%emt 0:00:26]} 10. Nxd4 {[%emt 0:01:03]} Nc5 {[%emt 0:00:12]} 11. h3 {[%emt 0:08:24]} Qb6 {[%emt 0:04:02]} 12. Qf3 {[%emt 0:10:14]} Qb4 {[%emt 0:25:57]} 13. Nf5 {[%emt 0:27:21]} Bxf5 {[%emt 0:00:26]} 14. Qxf5 {[%emt 0:01:27]} g6 {[%emt 0:09:31]} 15. Qf3 {[%emt 0:00:57]} Ne6 {[%emt 0:07:32]} 16. Bh6 {[%emt 0:10:04]} Nd4 {[%emt 0:10:15]} 17. Qd3 {[%emt 0:01:12]} Rfe8 {[%emt 0:05:01]} 18. Bd2 {[%emt 0:10:40]} c5 {[%emt 0:01:15]} 19. Nd5 {[%emt 0:15:59]} Qxb2 {[%emt 0:10:15]} 20. c3 {[%emt 0:10:49]} Qc2 {[%emt 0:03:26]} 21. Nxf6+ {[%emt 0:03:38]} Bxf6 {[%emt 0:00:26]} 22. Qc4 {[%emt 0:01:33]} Re7 {[%emt 0:03:12]} 23. Bf4 {[%emt 0:01:43]} d5 {[%emt 0:04:25]} 24. exd5 {[%emt 0:00:50]} Ne2+ {[%emt 0:02:19]} 25. Kf1 {[%emt 0:00:04]} Qxc3 {[%emt 0:09:55]} 26. d6 {[%emt 0:00:02]} Re6 {[%emt 0:01:21]} 27. Qxc3 {[%emt 0:02:34]} Bxc3 {[%emt 0:01:37]} 28. Bxe6 {[%emt 0:00:22]} Nxf4 {[%emt 0:03:02]} 29. Bc8 {[%emt 0:00:52]} Bxa1 {[%emt 0:05:32]} 30. d7 {[%emt 0:00:08]} Bf6 {[%emt 0:00:13]} 31. Re8+ {[%emt 0:00:37]} Kg7 {[%emt 0:00:05]} 32. Bxb7 {[%emt 0:00:57]} Rd8 {[%emt 0:00:13]} 33. Bc8 {[%emt 0:00:49]} Ne6 {[%emt 0:00:31]} 34. f4 {[%emt 0:00:21]} Nxf4 {[%emt 0:00:32]} 35. Re4 {[%emt 0:00:12]} Ne6 {[%emt 0:00:29]} 0-1

[Event "45th Guernsey Open 2019"]
[Site "Vale"]
[Date "2019.10.25"]
[Round "6.7"]
[White "Van Dijk, Bram"]
[Black "Dilleigh, Stephen P"]
[Result "0-1"]
[ECO "C02"]
[WhiteElo "1982"]
[BlackElo "2037"]
[Annotator "NA RC"]
[PlyCount "94"]
[EventDate "2019.10.20"]
[EventType "swiss"]
[EventCountry "GCI"]
[SourceTitle "playchess.com"]
[Source "ChessBase"]
[SourceQuality "1"]
[TimeControl "40/6000+30:2400+30"]

1. e4 {[%emt 0:00:00]} e6 {[%emt 0:00:00]} 2. d4 {[%emt 0:00:00]} d5 {[%emt 0:00:00]} 3. e5 {[%emt 0:00:00]} c5 {[%emt 0:00:00]} 4. Nf3 {[%emt 0:00:00]} Nc6 {[%emt 0:00:12]} 5. Bd3 {[%emt 0:00:00]} cxd4 {[%emt 0:00:28]} 6. O-O {[%emt 0:00:10]} f6 {[%emt 0:00:18]} 7. Bf4 {[%emt 0:00:47]} g5 {[%emt 0:15:24]} 8. Bg3 {[%emt 0:00:56]} g4 {[%emt 0:01:30]} 9. Nfd2 {[%emt 0:06:48]} fxe5 {[%emt 0:06:01]} 10. Bb5 {[%emt 0:03:37]} Bd6 {[%emt 0:09:36]} 11. Qxg4 {[%emt 0:03:12]} Nf6 {[%emt 0:02:08]} 12. Qh4 {[%emt 0:05:30]} Qe7 {[%emt 0:12:13]} 13. Nf3 {[%emt 0:03:47]} Nd7 {[%emt 0:08:37]} 14. Qh6 {[%emt 0:01:02]} Qf7 {[%emt 0:07:47]} 15. Ng5 {[%emt 0:05:00]} Qg6 {[%emt 0:00:24]} 16. Qxg6+ {[%emt 0:00:12]} hxg6 {[%emt 0:00:07]} 17. Nd2 {[%emt 0:07:21]} Ke7 {[%emt 0:02:04]} 18. Ndf3 {[%emt 0:01:07]} Rh5 {[%emt 0:03:20]} 19. Bh4 {[%emt 0:17:48]} Nf6 {[%emt 0:06:24]} 20. Bxc6 {[%emt 0:04:52]} bxc6 {[%emt 0:00:19]} 21. g3 {[%emt 0:02:07]} c5 {[%emt 0:01:51]} 22. b4 {[%emt 0:01:32]} cxb4 {[%emt 0:03:11]} 23. Rfe1 {[%emt 0:00:40]} e4 {[%emt 0:02:35]} 24. Nxd4 {[%emt 0:00:38]} Bd7 {[%emt 0:00:55]} 25. f3 {[%emt 0:02:24]} Bc5 {[%emt 0:00:44]} 26. Rad1 {[%emt 0:00:35]} e5 {[%emt 0:03:00]} 27. fxe4 {[%emt 0:07:43]} Bxd4+ {[%emt 0:01:54]} 28. Rxd4 {[%emt 0:02:17]} exd4 {[%emt 0:00:25]} 29. e5 {[%emt 0:00:04]} Ng4 {[%emt 0:04:02]} 30. e6 {[%emt 0:01:55]} Bb5 {[%emt 0:01:11]} 31. Nf3+ {[%emt 0:02:47]} Rxh4 {[%emt 0:05:15]} 32. gxh4 {[%emt 0:00:20]} Rf8 {[%emt 0:01:29]} 33. Nxd4 {[%emt 0:00:18]} Ba4 {[%emt 0:00:52]} 34. h3 {[%emt 0:05:18]} Nf2 {[%emt 0:03:43]} 35. a3 {[%emt 0:07:32]} Nxh3+ {[%emt 0:01:44]} 36. Kh2 {[%emt 0:01:28]} Rf4 {[%emt 0:01:21]} 37. Ne2 {[%emt 0:01:24]} Re4 {[%emt 0:01:39]} 38. Kxh3 {[%emt 0:02:38]} Bb5 {[%emt 0:00:29]} 39. Rg1 {[%emt 0:03:06]} Rxe2 {[%emt 0:00:52]} 40. Rxg6 {[%emt 0:01:05]} Re3+ {[%emt 0:02:49]} 41. Kg4 {[%emt 0:40:29]} bxa3 {[%emt 0:41:24]} 42. Kf5 {[%emt 0:02:43]} a6 {[%emt 0:02:03]} 43. h5 {[%emt 0:02:33]} a2 {[%emt 0:00:00]} 44. Rg7+ {[%emt 0:00:00]} Kd6 {[%emt 0:00:00]} 45. Rg1 {[%emt 0:00:00]} Rf3+ {[%emt 0:00:00]} 46. Kg6 {[%emt 0:00:00]} Rf1 {[%emt 0:00:00]} 47. Rg4 Rf4 0-1

[Event "45th Guernsey Open 2019"]
[Site "Vale"]
[Date "2019.10.25"]
[Round "6.8"]
[White "Thurlow, Kevin J"]
[Black "Rosen, Daniel B"]
[Result "1-0"]
[ECO "A25"]
[WhiteElo "2021"]
[BlackElo "1990"]
[Annotator "NA"]
[PlyCount "83"]
[EventDate "2019.10.20"]
[EventType "swiss"]
[EventCountry "GCI"]
[SourceTitle "playchess.com"]
[Source "ChessBase"]
[SourceQuality "1"]
[TimeControl "40/6000+30:2400+30"]

1. c4 {[%emt 0:00:00]} e5 {[%emt 0:00:00]} 2. Nc3 {[%emt 0:00:00]} Nc6 {[%emt 0:00:21]} 3. e3 {[%emt 0:00:09]} d6 {[%emt 0:01:26]} 4. g3 {[%emt 0:00:51]} Be7 {[%emt 0:01:33]} 5. Bg2 {[%emt 0:00:05]} f5 {[%emt 0:02:50]} 6. Nge2 {[%emt 0:00:09]} Nf6 {[%emt 0:00:08]} 7. d4 {[%emt 0:00:22]} O-O {[%emt 0:00:22]} 8. Nd5 {[%emt 0:03:14]} Re8 {[%emt 0:17:32]} 9. O-O {[%emt 0:03:45]} Bf8 {[%emt 0:03:10]} 10. b4 {[%emt 0:03:23]} Ne7 {[%emt 0:03:24]} 11. Nxf6+ {[%emt 0:01:24]} gxf6 {[%emt 0:00:09]} 12. Bb2 {[%emt 0:00:32]} Be6 {[%emt 0:04:37]} 13. Qc2 {[%emt 0:04:23]} Bg7 {[%emt 0:07:17]} 14. b5 {[%emt 0:05:57]} Qc8 {[%emt 0:04:35]} 15. a4 {[%emt 0:06:48]} d5 {[%emt 0:06:01]} 16. cxd5 {[%emt 0:01:49]} Bxd5 {[%emt 0:00:39]} 17. e4 {[%emt 0:05:02]} Bxe4 {[%emt 0:03:59]} 18. Bxe4 {[%emt 0:02:53]} fxe4 {[%emt 0:00:09]} 19. dxe5 {[%emt 0:00:23]} f5 {[%emt 0:01:16]} 20. f4 {[%emt 0:07:30]} c6 {[%emt 0:05:53]} 21. Rac1 {[%emt 0:00:41]} a6 {[%emt 0:05:20]} 22. Nd4 {[%emt 0:09:59]} axb5 {[%emt 0:01:23]} 23. axb5 {[%emt 0:00:11]} Qb8 {[%emt 0:03:10]} 24. Qc4+ {[%emt 0:02:48]} Kh8 {[%emt 0:00:12]} 25. Ne6 {[%emt 0:01:17]} cxb5 {[%emt 0:01:50]} 26. Qxb5 {[%emt 0:00:38]} Qa7+ {[%emt 0:00:44]} 27. Bd4 {[%emt 0:00:22]} Qa4 {[%emt 0:00:26]} 28. Qb2 {[%emt 0:03:16]} Nc6 {[%emt 0:01:12]} 29. Nxg7 {[%emt 0:07:21]} Qxd4+ {[%emt 0:00:18]} 30. Qxd4 {[%emt 0:00:32]} Nxd4 {[%emt 0:00:08]} 31. Nxe8 {[%emt 0:02:20]} Ne2+ {[%emt 0:00:12]} 32. Kg2 {[%emt 0:00:09]} Nxc1 {[%emt 0:00:14]} 33. Nc7 {[%emt 0:02:02]} Ra2+ {[%emt 0:00:14]} 34. Kh3 {[%emt 0:00:11]} Rc2 {[%emt 0:05:49]} 35. Nd5 {[%emt 0:00:47]} Nd3 {[%emt 0:08:20]} 36. Ne3 {[%emt 0:02:23]} Re2 {[%emt 0:01:27]} 37. Nxf5 {[%emt 0:00:49]} Ne1 {[%emt 0:00:18]} 38. Nd4 {[%emt 0:02:29]} Re3 {[%emt 0:00:46]} 39. Kg4 {[%emt 0:02:49]} Kg8 {[%emt 0:01:05]} 40. f5 {[%emt 0:04:50]} Nd3 {[%emt 0:00:53]} 41. e6 {[%emt 0:42:10]} Kf8 {[%emt 0:42:27]} 42. f6 {[%emt 0:00:39]} 1-0

[Event "45th Guernsey Open 2019"]
[Site "Vale"]
[Date "2019.10.25"]
[Round "6.9"]
[White "White, Nigel"]
[Black "Pleasants, Allan J"]
[Result "0-1"]
[ECO "B06"]
[WhiteElo "1975"]
[BlackElo "2019"]
[Annotator "NA RC"]
[PlyCount "130"]
[EventDate "2019.10.20"]
[EventType "swiss"]
[EventCountry "GCI"]
[SourceTitle "playchess.com"]
[Source "ChessBase"]
[SourceQuality "1"]
[TimeControl "40/6000+30:2400+30"]

1. e4 {[%emt 0:00:00]} g6 {[%emt 0:00:00]} 2. d4 {[%emt 0:00:00]} Bg7 {[%emt 0:00:00]} 3. Nc3 {[%emt 0:00:08]} d6 {[%emt 0:00:01]} 4. Be3 {[%emt 0:00:38]} a6 {[%emt 0:00:45]} 5. Qd2 {[%emt 0:02:55]} b5 {[%emt 0:00:58]} 6. f3 {[%emt 0:01:14]} Nd7 {[%emt 0:01:49]} 7. h4 {[%emt 0:06:43]} h6 {[%emt 0:00:17] B06: Modern Defence} (7... h5 8. Nh3 Bb7 9. Ng5 Rc8 10. a4 b4 11. Bc4 e6 12. Ne2 c5 13. Ba2 a5 14. Rd1 c4 15. c3 b3 16. Bb1 Ne7 {1-0 (33) Smirin,I (2599)-Bortnyk,O (2602) Saint Louis 2019}) 8. Nge2 {[%emt 0:01:22]} Nb6 {[%emt 0:07:53]} 9. Ng3 $146 {[%emt 0:00:51]} ({Predecessor:} 9. Nf4 c6 10. a4 b4 11. Nd1 a5 12. Bd3 Qc7 13. Qf2 Nf6 14. c4 Nbd7 15. Ne2 {½-½ (30) Burke,M (1974)-Jaunooby,A (2186) Aberystwyth 2014}) 9... Nf6 {[%emt 0:16:15]} 10. h5 {[%emt 0:08:37]} g5 {[%emt 0:06:10]} 11. Bd3 {[%emt 0:05:49]} Rb8 {[%emt 0:06:29]} 12. Nce2 {[%emt 0:08:45]} c6 {[%emt 0:02:50]} 13. b3 {[%emt 0:06:47]} Qc7 {[%emt 0:05:01]} 14. c3 {[%emt 0:00:30]} c5 {[%emt 0:00:30]} 15. Kf2 {[%emt 0:00:30]} Be6 {[%emt 0:00:30]} 16. Bc2 {[%emt 0:00:30]} a5 {[%emt 0:00:30]} 17. Rac1 {[%emt 0:00:30]} a4 {[%emt 0:22:42]} 18. Ra1 Ra8 {[%emt 0:05:01]} 19. Rhc1 {[%emt 0:16:56]} Bd7 {[%emt 0:03:32]} 20. Ng1 {[%emt 0:04:14]} Bf8 {[%emt 0:02:38]} 21. Qe2 {[%emt 0:03:05]} e6 {[%emt 0:01:27]} 22. Qd2 {[%emt 0:04:58]} Be7 {[%emt 0:00:45]} 23. N1e2 {[%emt 0:00:28]} Bc6 {[%emt 0:02:42]} 24. Rh1 {[%emt 0:01:03]} Nfd7 {[%emt 0:02:38]} 25. Rhe1 {[%emt 0:06:09]} Bb7 {[%emt 0:01:16]} 26. Kg1 {[%emt 0:04:56]} Rg8 {[%emt 0:01:58]} 27. Nh1 {[%emt 0:02:38]} g4 {[%emt 0:02:50]} 28. f4 {[%emt 0:02:19]} g3 {[%emt 0:02:02]} 29. Nexg3 {[%emt 0:03:13]} Bh4 {[%emt 0:00:31]} 30. Bf2 {[%emt 0:00:13]} Nf6 {[%emt 0:00:42]} 31. f5 {[%emt 0:06:07]} Ng4 {[%emt 0:01:24]} 32. fxe6 {[%emt 0:00:36]} Nxf2 {[%emt 0:00:46]} 33. exf7+ {[%emt 0:01:26]} Qxf7 {[%emt 0:00:35]} 34. Qxf2 {[%emt 0:00:22]} Qg7 {[%emt 0:06:28]} 35. Kh2 {[%emt 0:00:37]} Qg5 {[%emt 0:01:42]} 36. Qe3 {[%emt 0:01:05]} Bxg3+ {[%emt 0:00:43]} 37. Nxg3 {[%emt 0:00:14]} Qh4+ {[%emt 0:00:05]} 38. Kg1 {[%emt 0:00:55]} Qxg3 {[%emt 0:00:09]} 39. Re2 {[%emt 0:06:54]} Qxe3+ {[%emt 0:01:07]} 40. Rxe3 {[%emt 0:00:01]} axb3 {[%emt 0:01:47]} 41. Bxb3 {[%emt 0:40:02]} c4 {[%emt 0:06:20]} 42. Bd1 {[%emt 0:00:00]} Bc6 {[%emt 0:03:57]} 43. Bf3 {[%emt 0:00:00]} Ra3 {[%emt 0:02:17]} 44. Kf2 {[%emt 0:00:00]} Na4 {[%emt 0:04:24]} 45. g4 {[%emt 0:00:00]} Rxc3 {[%emt 0:03:33]} 46. Rxc3 {[%emt 0:00:00]} Nxc3 {[%emt 0:00:08]} 47. Ke3 {[%emt 0:00:00]} Ke7 {[%emt 0:03:08]} 48. d5 {[%emt 0:00:00]} Bd7 {[%emt 0:00:50]} 49. Kd4 {[%emt 0:00:00]} Na4 {[%emt 0:01:01]} 50. Re1 {[%emt 0:00:00]} Kf6 {[%emt 0:09:27]} 51. Bd1 {[%emt 0:00:00]} Nb2 {[%emt 0:02:13]} 52. Be2 {[%emt 0:00:00]} Kg5 {[%emt 0:01:25]} 53. Rf1 {[%emt 0:00:00]} Nd3 {[%emt 0:01:57]} 54. Bxd3 {[%emt 0:00:00]} cxd3 {[%emt 0:00:11]} 55. Kxd3 {[%emt 0:00:00]} Bxg4 {[%emt 0:01:14]} 56. Kd4 {[%emt 0:00:00]} Kxh5 {[%emt 0:03:29]} 57. e5 {[%emt 0:00:00]} dxe5+ {[%emt 0:00:27]} 58. Kxe5 $19 {[%emt 0:00:00]} Kg5 {[%emt 0:00:34]} 59. Rb1 {[%emt 0:00:00]} Ra8 {[%emt 0:01:30]} 60. Rb2 {[%emt 0:00:00]} h5 {[%emt 0:00:49]} 61. Kd6 {[%emt 0:00:00]} h4 {[%emt 0:01:00]} 62. Kc7 {[%emt 0:00:00]} h3 {[%emt 0:01:28]} 63. d6 {[%emt 0:00:00]} Ra7+ {[%emt 0:00:39]} 64. Kc6 {[%emt 0:00:00]} Kh4 {[%emt 0:00:20]} 65. Kb6 {[%emt 0:01:00]} Rh7 {[%emt 0:01:13]} 0-1

[Event "45th Guernsey Open 2019"]
[Site "Vale"]
[Date "2019.10.25"]
[Round "6.10"]
[White "Strade, Arita"]
[Black "Coenen, Albert"]
[Result "1-0"]
[ECO "B03"]
[WhiteElo "1882"]
[BlackElo "1899"]
[Annotator "NA"]
[PlyCount "44"]
[EventDate "2019.10.20"]
[EventType "swiss"]
[EventCountry "GCI"]
[SourceTitle "playchess.com"]
[Source "ChessBase"]
[SourceQuality "1"]
[TimeControl "40/6000+30:2400+30"]

1. e4 {[%emt 0:00:00]} Nf6 {[%emt 0:00:00]} 2. e5 {[%emt 0:00:14]} Nd5 {[%emt 0:00:00]} 3. d4 {[%emt 0:00:22]} d6 {[%emt 0:00:00]} 4. c4 {[%emt 0:00:53]} Nb6 {[%emt 0:00:00]} 5. exd6 {[%emt 0:00:54]} exd6 {[%emt 0:00:05]} 6. Nc3 {[%emt 0:00:29]} Be7 {[%emt 0:00:51]} 7. Be3 {[%emt 0:03:29]} Nc6 {[%emt 0:01:02]} 8. Rc1 {[%emt 0:02:03]} Bf5 {[%emt 0:01:19]} 9. b3 {[%emt 0:07:24]} O-O {[%emt 0:00:55]} 10. Bd3 {[%emt 0:00:45]} Bxd3 {[%emt 0:07:19]} 11. Qxd3 {[%emt 0:00:07]} Bg5 {[%emt 0:01:24]} 12. f4 {[%emt 0:03:44]} Bf6 {[%emt 0:07:13]} 13. Nf3 {[%emt 0:07:28]} Re8 {[%emt 0:07:09]} 14. O-O {[%emt 0:02:44]} Qd7 {[%emt 0:06:28]} 15. Bf2 {[%emt 0:08:24]} Re7 {[%emt 0:07:04]} 16. Ne4 {[%emt 0:04:50]} Qf5 {[%emt 0:07:03]} 17. Nxf6+ {[%emt 0:01:04]} Qxf6 {[%emt 0:00:06]} 18. d5 {[%emt 0:12:26]} Qxf4 {[%emt 0:05:24]} 19. dxc6 {[%emt 0:01:33]} bxc6 {[%emt 0:00:05]} 20. c5 {[%emt 0:02:10]} Nd5 {[%emt 0:00:55]} 21. cxd6 {[%emt 0:02:37]} cxd6 {[%emt 0:00:14]} 22. Rxc6 {[%emt 0:01:41]} Ree8 1-0